{"text_format":"1","workbook":"xlsx","n_sheets":3,"sheets":["Accueil","Listes","BD articles menus"],"not_rendered":{"charts":0,"images":0,"macros":1,"external_links":0,"defined_names":0,"comments":0,"pivot_tables":0},"unopened":[],"bounds":{"document_bytes":16777216,"sheet_cells":100000,"rows_first":2000,"rows_last":500,"rows_between":2000,"halvings":0,"cell_chars":16384,"cell_head_chars":4096},"cells_cut":0,"cells_raw":0,"read":"whole","date_system":"1900"}

{"sheet":"Accueil","index":0,"n_rows":133,"n_cols":6,"rows_kept":133,"cut":false,"hidden":false,"merged":[]}
[null,null,null,"Open","Save",2024]
[null,null,null,"2023-06-27T11:20:51","2023-06-27T11:18:06"]
[null,null,null,"2023-06-28T15:16:22","2023-06-27T11:20:36"]
[null,null,null,"2023-06-29T10:42:07","2023-06-27T11:21:09"]
[null,null,null,"2023-06-29T14:55:27","2023-06-27T11:47:52"]
[null,null,null,"2023-07-01T12:08:30","2023-06-27T12:51:18"]
[null,null,null,"2023-07-02T11:03:53","2023-06-28T16:19:21"]
[null,null,null,"2023-07-02T15:39:41","2023-06-29T11:30:22"]
[null,null,null,"2023-07-03T10:57:11","2023-06-29T15:48:35"]
[null,null,null,"2023-07-03T18:15:55","2023-06-29T16:30:41"]
[null,null,null,"2023-07-04T09:33:33","2023-07-01T12:24:02"]
[null,null,null,"2023-07-05T10:53:31","2023-07-02T12:27:46"]
[null,null,null,"2023-07-05T14:34:25","2023-07-02T16:02:57"]
[null,null,null,"2023-07-05T18:51:40","2023-07-02T16:05:41"]
[null,null,null,"2023-07-05T21:52:35","2023-07-03T11:01:03"]
[null,null,null,"2023-07-06T11:09:01","2023-07-03T21:45:08"]
[null,null,null,"2023-07-06T14:38:57","2023-07-04T09:56:18"]
[null,null,null,"2023-07-06T19:05:45","2023-07-05T12:09:09"]
[null,null,null,"2023-07-06T21:11:28","2023-07-05T16:05:18"]
[null,null,null,"2023-07-07T10:49:56","2023-07-05T16:17:35"]
[null,null,null,"2023-07-07T18:58:25","2023-07-05T16:26:19"]
[null,null,null,"2023-07-08T15:56:05","2023-07-05T19:09:11"]
[null,null,null,"2023-07-08T16:11:59","2023-07-05T19:40:44"]
[null,null,null,"2023-07-08T17:49:04","2023-07-05T21:03:21"]
[null,null,null,"2023-07-09T11:29:34","2023-07-05T21:10:25"]
[null,null,null,"2023-07-09T12:05:20","2023-07-05T21:56:53"]
[null,null,null,"2023-07-09T17:34:16","2023-07-05T22:17:08"]
[null,null,null,"2023-07-09T18:18:42","2023-07-06T13:28:02"]
[null,null,null,"2023-07-10T10:48:19","2023-07-06T15:04:48"]
[null,null,null,"2023-07-10T14:47:45","2023-07-06T15:42:14"]
[null,null,null,"2023-07-10T21:18:07","2023-07-06T15:51:47"]
[null,null,null,"2023-07-13T16:01:21","2023-07-06T16:06:44"]
[null,null,null,"2023-07-13T21:22:09","2023-07-06T16:09:10"]
[null,null,null,"2023-07-14T11:06:14","2023-07-06T19:20:33"]
[null,null,null,"2023-07-14T21:42:15","2023-07-06T19:55:27"]
[null,null,null,"2023-07-15T12:04:50","2023-07-06T21:59:40"]
[null,null,null,"2023-07-15T18:30:47","2023-07-07T11:01:29"]
[null,null,null,"2023-07-16T15:17:37","2023-07-07T11:23:26"]
[null,null,null,"2023-07-17T12:09:25","2023-07-07T19:04:52"]
[null,null,null,"2023-07-17T19:31:11","2023-07-07T21:41:34"]
[null,null,null,"2023-07-19T10:21:19","2023-07-07T21:49:48"]
[null,null,null,"2023-07-20T11:46:47","2023-07-08T16:03:52"]
[null,null,null,"2023-07-20T12:28:06","2023-07-08T16:20:43"]
[null,null,null,"2023-07-20T15:08:23","2023-07-08T16:21:36"]
[null,null,null,"2023-07-20T19:11:05","2023-07-08T16:30:26"]
[null,null,null,"2023-07-21T11:05:53","2023-07-08T21:57:02"]
[null,null,null,"2023-07-21T14:56:32","2023-07-09T11:36:23"]
[null,null,null,"2023-07-21T21:00:20","2023-07-09T11:39:55"]
[null,null,null,"2023-07-22T11:09:01","2023-07-09T12:02:00"]
[null,null,null,"2023-07-22T18:01:23","2023-07-09T12:19:49"]
[null,null,null,"2023-07-22T21:08:34","2023-07-09T17:41:27"]
[null,null,null,"2023-07-22T22:00:08","2023-07-09T17:53:28"]
[null,null,null,"2023-07-23T11:07:42","2023-07-09T18:07:07"]
[null,null,null,"2023-07-23T13:05:41","2023-07-09T18:18:23"]
[null,null,null,"2023-07-23T14:43:24","2023-07-09T18:20:17"]
[null,null,null,"2023-07-23T14:56:35","2023-07-09T18:25:21"]
[null,null,null,"2023-07-23T16:14:35","2023-07-10T12:30:07"]
[null,null,null,"2023-07-23T18:38:50","2023-07-10T14:54:57"]
[null,null,null,"2023-07-24T11:02:09","2023-07-10T15:10:13"]
[null,null,null,"2023-07-24T14:33:32","2023-07-10T15:35:43"]
[null,null,null,"2023-07-25T10:43:04","2023-07-10T16:20:03"]
[null,null,null,"2023-07-25T21:54:40","2023-07-10T16:25:40"]
[null,null,null,"2023-07-26T10:22:54","2023-07-10T16:36:55"]
[null,null,null,"2023-07-26T14:32:51","2023-07-10T21:50:08"]
[null,null,null,"2023-07-26T15:58:48","2023-07-10T22:09:48"]
[null,null,null,null,"2023-07-13T16:03:44"]
[null,null,null,null,"2023-07-13T16:13:47"]
[null,null,null,null,"2023-07-13T16:25:48"]
[null,null,null,null,"2023-07-13T21:54:07"]
[null,null,null,null,"2023-07-14T11:41:17"]
[null,null,null,null,"2023-07-14T11:52:29"]
[null,null,null,null,"2023-07-14T21:59:04"]
[null,null,null,null,"2023-07-15T12:41:44"]
[null,null,null,null,"2023-07-15T12:47:21"]
[null,null,null,null,"2023-07-15T12:48:48"]
[null,null,null,null,"2023-07-15T18:54:00"]
[null,null,null,null,"2023-07-15T19:00:19"]
[null,null,null,null,"2023-07-15T19:06:42"]
[null,null,null,null,"2023-07-15T19:15:04"]
[null,null,null,null,"2023-07-15T22:21:10"]
[null,null,null,null,"2023-07-15T22:21:30"]
[null,null,null,null,"2023-07-15T22:41:27"]
[null,null,null,null,"2023-07-16T15:55:48"]
[null,null,null,null,"2023-07-17T12:09:32"]
[null,null,null,null,"2023-07-17T19:38:40"]
[null,null,null,null,"2023-07-17T19:46:57"]
[null,null,null,null,"2023-07-19T10:27:36"]
[null,null,null,null,"2023-07-20T12:24:34"]
[null,null,null,null,"2023-07-20T12:27:10"]
[null,null,null,null,"2023-07-20T12:31:42"]
[null,null,null,null,"2023-07-20T16:33:10"]
[null,null,null,null,"2023-07-20T19:29:17"]
[null,null,null,null,"2023-07-20T21:35:44"]
[null,null,null,null,"2023-07-21T11:34:03"]
[null,null,null,null,"2023-07-21T16:15:19"]
[null,null,null,null,"2023-07-21T16:26:09"]
[null,null,null,null,"2023-07-21T21:19:19"]
[null,null,null,null,"2023-07-22T11:38:14"]
[null,null,null,null,"2023-07-22T12:12:16"]
[null,null,null,null,"2023-07-22T18:43:31"]
[null,null,null,null,"2023-07-22T21:57:14"]
[null,null,null,null,"2023-07-22T22:01:15"]
[null,null,null,null,"2023-07-23T12:03:41"]
[null,null,null,null,"2023-07-23T12:05:55"]
[null,null,null,null,"2023-07-23T12:06:28"]
[null,null,null,null,"2023-07-23T13:16:41"]
[null,null,null,null,"2023-07-23T13:23:57"]
[null,null,null,null,"2023-07-23T14:48:46"]
[null,null,null,null,"2023-07-23T15:29:14"]
[null,null,null,null,"2023-07-23T16:26:53"]
[null,null,null,null,"2023-07-23T22:04:02"]
[null,null,null,null,"2023-07-24T12:02:43"]
[null,null,null,null,"2023-07-24T12:35:06"]
[null,null,null,null,"2023-07-24T14:37:18"]
[null,null,null,null,"2023-07-24T15:21:13"]
[null,null,null,null,"2023-07-24T15:41:12"]
[null,null,null,null,"2023-07-24T15:41:26"]
[null,null,null,null,"2023-07-24T15:55:08"]
[null,null,null,null,"2023-07-24T16:00:03"]
[null,null,null,null,"2023-07-24T16:08:48"]
[null,null,null,null,"2023-07-24T16:42:09"]
[null,null,null,null,"2023-07-25T10:57:52"]
[null,null,null,null,"2023-07-25T11:19:11"]
[null,null,null,null,"2023-07-25T13:36:01"]
[null,null,null,null,"2023-07-25T22:07:16"]
[null,null,null,null,"2023-07-25T22:10:32"]
[null,null,null,null,"2023-07-26T12:08:00"]
[null,null,null,null,"2023-07-26T12:12:03"]
[null,null,null,null,"2023-07-26T14:58:05"]
[null,null,null,null,"2023-07-26T15:35:00"]
[null,null,null,null,"2023-07-26T15:37:31"]
[null,null,null,null,"2023-07-26T16:18:47"]
[null,null,null,null,"2023-07-26T16:19:34"]

{"sheet":"Listes","index":1,"n_rows":121,"n_cols":52,"rows_kept":121,"cut":false,"hidden":false,"merged":[]}
[]
[]
["Nom nature création","Code nature création",null,"Nom nature article menu","Code nature article menu",null,"Nom dessert midi retraite","Code dessert midi retraite",null,"Nom dessert soir","Code dessert soir",null,"Nom desserts weekend","Code desserts weekend",null,"Nom légumes midi retraite","Code légumes midi retraite",null,"Nom légumes soirs lundi mardi","Code légumes soirs lundi mardi",null,"Nom légumes soirs mercredi jeudi","Code légumes soirs mercredi jeudi",null,"Nom légumes soirs vendredi","Code légumes soirs vendredi",null,"Nom légumes weekend samedi","Code légumes weekend samedi",null,"Nom légumes weekend dimanche","Code légumes weekend dimanche",null,"Nom viandes midi retraite","Code viandes midi retraite",null,"Nom viandes soirs","Code viandes soirs",null,"Nom viandes midi weekend","Code viandes midi weekend",null,"Nom périodes articles menus","Code périodes articles menus",null,"Nom conditionnement articles menus","Code conditionnement articles menus",null,"Code produit","Nom produit","Libellé produit","Clé produit"]
["Création articles menus","CAM",null,"Dessert midi retraite","DMR",null,"Pomme","DMR01",null,"Pomme","DS01",null,"Ananas","DW01",null,"Asperges","LMR01",null,"Cassoulet","LSLM01",null,"Macédoine de légumes","LSMJ01",null,"Asperges","LSV01",null,"Pâtes à la sauce tomates","LWS01",null,"Asperges","LWD01",null,"Rôti d'agneau","VMR01",null,"Bifteck haché de bœuf","VS01",null,"Agneau","VMW01",null,"Dimanche midi","PAM01",null,"1 bocal ou 1 boîte pour 1 repas","CAM01",null,"DMR01","Pomme","Dessert midi retraite",{"$f":"TabProduits[[#This Row],[Nom produit]]&TabProduits[[#This Row],[Libellé produit]]","v":"PommeDessert midi retraite"}]
["Création menus midi retraite","CMMR",null,"Dessert soir","DS",null,null,null,null,null,null,null,"Autres fruits","DW02",null,"Avocat","LMR02",null,"Choucroute","LSLM02",null,"Petits pois","LSMJ02",null,"Avocat","LSV02",null,"Pâtes au beurre","LWS02",null,"Chips","LWD02",null,"Rôti de bœuf","VMR02",null,"Bifteck haché de cheval","VS02",null,"Bœuf","VMW02",null,"Dimanche midi et soir","PAM02",null,"1 boîte de 6 œufs. 3 œufs pour 1 repas","CAM02",null,"DS01","Pomme","Dessert soir",{"$f":"TabProduits[[#This Row],[Nom produit]]&TabProduits[[#This Row],[Libellé produit]]","v":"PommeDessert soir"}]
["Création menus journaliers","CMJ",null,"Desserts weekend","DW",null,null,null,null,null,null,null,"Avocats","DW03",null,"Carottes","LMR03",null,"Chou-fleur","LSLM03",null,"Petits pois et jeunes carottes","LSMJ03",null,"Betterave rouge","LSV03",null,"Pâtes au fromage râpé","LWS03",null,"Frites","LWD03",null,"Rôti de cheval","VMR03",null,"Bifteck haché de veau","VS03",null,"Cheval","VMW03",null,"Dimanche soir","PAM03",null,"1 boîte ou 1 pot pour 1 repas","CAM03",null,"DW01","Ananas","Desserts weekend",{"$f":"TabProduits[[#This Row],[Nom produit]]&TabProduits[[#This Row],[Libellé produit]]","v":"AnanasDesserts weekend"}]
["Création menus viandes midi weekend","CMVMW",null,"Légumes midi retraite","LMR",null,null,null,null,null,null,null,"Bananes","DW04",null,"Céleri","LMR04",null,"Choux de Bruxelles","LSLM04",null,"Ratatouille","LSMJ04",null,"Carottes","LSV04",null,null,null,null,"Haricots verts","LWD04",null,"Rôti de porc","VMR04",null,"Bouchée à la reine","VS04",null,"Dinde","VMW04",null,"Lundi à dimanche soirs","PAM04",null,"1 boîte pour 1 repas","CAM04",null,"DW02","Autres fruits","Desserts weekend",{"$f":"TabProduits[[#This Row],[Nom produit]]&TabProduits[[#This Row],[Libellé produit]]","v":"Autres fruitsDesserts weekend"}]
[null,null,null,"Légumes soirs lundi mardi","LSLM",null,null,null,null,null,null,null,"Clémentines","DW05",null,"Champignons","LMR05",null,"Couscous","LSLM05",null,"Raviolis","LSMJ05",null,"Céleri","LSV05",null,null,null,null,null,null,null,"Rôti de veau","VMR05",null,"Boudin","VS05",null,"Poisson","VMW05",null,"Lundi à vendredi midis","PAM05",null,"1 boîte pour 2 repas","CAM05",null,"DW03","Avocats","Desserts weekend",{"$f":"TabProduits[[#This Row],[Nom produit]]&TabProduits[[#This Row],[Libellé produit]]","v":"AvocatsDesserts weekend"}]
[null,null,null,"Légumes soirs mercredi jeudi","LSMJ",null,null,null,null,null,null,null,"Crème","DW06",null,"Concombre","LMR06",null,"Endives","LSLM06",null,"Tomates pelées","LSMJ06",null,"Champignons","LSV06",null,null,null,null,null,null,null,null,null,null,"Cervelas","VS06",null,"Porc","VMW06",null,"Lundi à vendredi soirs","PAM06",null,"1 botte ou 1 sachet pour 1 repas","CAM06",null,"DW04","Bananes","Desserts weekend",{"$f":"TabProduits[[#This Row],[Nom produit]]&TabProduits[[#This Row],[Libellé produit]]","v":"BananesDesserts weekend"}]
[null,null,null,"Légumes soirs vendredi","LSV",null,null,null,null,null,null,null,"Dattes","DW07",null,"Couscous","LMR07",null,"Haricots verts","LSLM07",null,null,null,null,"Concombre","LSV07",null,null,null,null,null,null,null,null,null,null,"Cœur","VS07",null,"Veau","VMW07",null,"Lundi et mardi soirs","PAM07",null,"1 botte ou 1 sachet pour 2 repas","CAM07",null,"DW05","Clémentines","Desserts weekend",{"$f":"TabProduits[[#This Row],[Nom produit]]&TabProduits[[#This Row],[Libellé produit]]","v":"ClémentinesDesserts weekend"}]
[null,null,null,"Légumes weekend dimanche","LWD",null,null,null,null,null,null,null,"Figues","DW08",null,"Maïs","LMR08",null,"Maïs","LSLM08",null,null,null,null,"Radis","LSV08",null,null,null,null,null,null,null,null,null,null,"Croque-monsieur","VS08",null,null,null,null,"Mercredi et jeudi soirs","PAM08",null,"1 morceau de 400 grammes (Leclerc) pour 3 repas","CAM08",null,"DW06","Crème","Desserts weekend",{"$f":"TabProduits[[#This Row],[Nom produit]]&TabProduits[[#This Row],[Libellé produit]]","v":"CrèmeDesserts weekend"}]
[null,null,null,"Légumes weekend samedi","LWS",null,null,null,null,null,null,null,"Fromage blanc","DW09",null,"Pâtes à la sauce tomates","LMR09",null,"Paella","LSLM09",null,null,null,null,"Salade","LSV09",null,null,null,null,null,null,null,null,null,null,"Foie","VS09",null,null,null,null,"Samedi et dimanche midis","PAM09",null,"1 morceau de 500 grammes pour 5 repas","CAM09",null,"DW07","Dattes","Desserts weekend",{"$f":"TabProduits[[#This Row],[Nom produit]]&TabProduits[[#This Row],[Libellé produit]]","v":"DattesDesserts weekend"}]
[null,null,null,"Viandes midi retraite","VMR",null,null,null,null,null,null,null,"Fruits au sirop","DW10",null,"Pâtes au beurre","LMR10",null,"Poireau","LSLM10",null,null,null,null,"Salsifis","LSV10",null,null,null,null,null,null,null,null,null,null,"Fromage de tête","VS10",null,null,null,null,"Samedi et dimanche midis et soirs","PAM10",null,"1 pack de 4 pots pour le weekend. 1 pot pour 1 repas","CAM10",null,"DW08","Figues","Desserts weekend",{"$f":"TabProduits[[#This Row],[Nom produit]]&TabProduits[[#This Row],[Libellé produit]]","v":"FiguesDesserts weekend"}]
[null,null,null,"Viandes midi weekend","VMW",null,null,null,null,null,null,null,"Fruits de saison","DW11",null,"Poireau","LMR11",null,"Pomme de terre","LSLM11",null,null,null,null,"Tomates","LSV11",null,null,null,null,null,null,null,null,null,null,"Jambon","VS11",null,null,null,null,"Samedi midi et soir","PAM11",null,"1 pack de 6 pots. 3 pots pour 1 repas","CAM11",null,"DW09","Fromage blanc","Desserts weekend",{"$f":"TabProduits[[#This Row],[Nom produit]]&TabProduits[[#This Row],[Libellé produit]]","v":"Fromage blancDesserts weekend"}]
[null,null,null,"Viandes soirs","VS",null,null,null,null,null,null,null,"Gâteau de riz","DW12",null,"Pomme de terre","LMR12",null,"Purée","LSLM12",null,null,null,null,null,null,null,null,null,null,null,null,null,null,null,null,"Jambonneau","VS12",null,null,null,null,"Vendredi soir","PAM12",null,"1 paquet pour 1 repas","CAM12",null,"DW10","Fruits au sirop","Desserts weekend",{"$f":"TabProduits[[#This Row],[Nom produit]]&TabProduits[[#This Row],[Libellé produit]]","v":"Fruits au siropDesserts weekend"}]
[null,null,null,null,null,null,null,null,null,null,null,null,"Gâteau de semoule","DW13",null,"Purée","LMR13",null,"Quenelles","LSLM13",null,null,null,null,null,null,null,null,null,null,null,null,null,null,null,null,"Mortadelle","VS13",null,null,null,null,null,null,null,"1 paquet pour 2 repas","CAM13",null,"DW11","Fruits de saison","Desserts weekend",{"$f":"TabProduits[[#This Row],[Nom produit]]&TabProduits[[#This Row],[Libellé produit]]","v":"Fruits de saisonDesserts weekend"}]
[null,null,null,null,null,null,null,null,null,null,null,null,"Gâteaux samedi dimanche","DW14",null,"Radis","LMR14",null,"Riz","LSLM14",null,null,null,null,null,null,null,null,null,null,null,null,null,null,null,null,"Œufs","VS14",null,null,null,null,null,null,null,"1 paquet pour 2 repas. 1 ou 2 saucisses pour 1 repas","CAM14",null,"DW12","Gâteau de riz","Desserts weekend",{"$f":"TabProduits[[#This Row],[Nom produit]]&TabProduits[[#This Row],[Libellé produit]]","v":"Gâteau de rizDesserts weekend"}]
[null,null,null,null,null,null,null,null,null,null,null,null,"Mousse au chocolat","DW15",null,"Riz","LMR15",null,null,null,null,null,null,null,null,null,null,null,null,null,null,null,null,null,null,null,"Pizza","VS15",null,null,null,null,null,null,null,"1 paquet pour 4 repas","CAM15",null,"DW13","Gâteau de semoule","Desserts weekend",{"$f":"TabProduits[[#This Row],[Nom produit]]&TabProduits[[#This Row],[Libellé produit]]","v":"Gâteau de semouleDesserts weekend"}]
[null,null,null,null,null,null,null,null,null,null,null,null,"Oranges","DW16",null,"Salade","LMR16",null,null,null,null,null,null,null,null,null,null,null,null,null,null,null,null,null,null,null,"Poisson","VS16",null,null,null,null,null,null,null,"1 paquet pour 5 repas (betteraves rouges)","CAM16",null,"DW14","Gâteaux samedi dimanche","Desserts weekend",{"$f":"TabProduits[[#This Row],[Nom produit]]&TabProduits[[#This Row],[Libellé produit]]","v":"Gâteaux samedi dimancheDesserts weekend"}]
[null,null,null,null,null,null,null,null,null,null,null,null,"Petits suisses","DW17",null,"Tomates","LMR17",null,null,null,null,null,null,null,null,null,null,null,null,null,null,null,null,null,null,null,"Quiche lorraine","VS17",null,null,null,null,null,null,null,"1 sachet de 2 kilogrammes. 1 pomme pour 1 repas","CAM17",null,"DW15","Mousse au chocolat","Desserts weekend",{"$f":"TabProduits[[#This Row],[Nom produit]]&TabProduits[[#This Row],[Libellé produit]]","v":"Mousse au chocolatDesserts weekend"}]
[null,null,null,null,null,null,null,null,null,null,null,null,"Pruneaux","DW18",null,null,null,null,null,null,null,null,null,null,null,null,null,null,null,null,null,null,null,null,null,null,"Roulade à la pistache","VS18",null,null,null,null,null,null,null,"1 sachet pour 2 repas (Chips)","CAM18",null,"DW16","Oranges","Desserts weekend",{"$f":"TabProduits[[#This Row],[Nom produit]]&TabProduits[[#This Row],[Libellé produit]]","v":"OrangesDesserts weekend"}]
[null,null,null,null,null,null,null,null,null,null,null,null,"Riz au lait","DW19",null,null,null,null,null,null,null,null,null,null,null,null,null,null,null,null,null,null,null,null,null,null,"Roulé au fromage","VS19",null,null,null,null,null,null,null,"1 sachet pour 4 repas","CAM19",null,"DW17","Petits suisses","Desserts weekend",{"$f":"TabProduits[[#This Row],[Nom produit]]&TabProduits[[#This Row],[Libellé produit]]","v":"Petits suissesDesserts weekend"}]
[null,null,null,null,null,null,null,null,null,null,null,null,"Tapioca","DW20",null,null,null,null,null,null,null,null,null,null,null,null,null,null,null,null,null,null,null,null,null,null,"Salami","VS20",null,null,null,null,null,null,null,"1 sachet pour 6 repas. 5 tranches pour 1 repas (Saucisson)","CAM20",null,"DW18","Pruneaux","Desserts weekend",{"$f":"TabProduits[[#This Row],[Nom produit]]&TabProduits[[#This Row],[Libellé produit]]","v":"PruneauxDesserts weekend"}]
[null,null,null,null,null,null,null,null,null,null,null,null,"Yaourts","DW21",null,null,null,null,null,null,null,null,null,null,null,null,null,null,null,null,null,null,null,null,null,null,"Saucisses","VS21",null,null,null,null,null,null,null,"1 tranche pour 1 repas","CAM21",null,"DW19","Riz au lait","Desserts weekend",{"$f":"TabProduits[[#This Row],[Nom produit]]&TabProduits[[#This Row],[Libellé produit]]","v":"Riz au laitDesserts weekend"}]
[null,null,null,null,null,null,null,null,null,null,null,null,null,null,null,null,null,null,null,null,null,null,null,null,null,null,null,null,null,null,null,null,null,null,null,null,"Saucisson","VS22",null,null,null,null,null,null,null,"1 tranche pour 2 repas","CAM22",null,"DW20","Tapioca","Desserts weekend",{"$f":"TabProduits[[#This Row],[Nom produit]]&TabProduits[[#This Row],[Libellé produit]]","v":"TapiocaDesserts weekend"}]
[null,null,null,null,null,null,null,null,null,null,null,null,null,null,null,null,null,null,null,null,null,null,null,null,null,null,null,null,null,null,null,null,null,null,null,null,"Tête persillée","VS23",null,null,null,null,null,null,null,"125 grammes pour 1 repas (Bifteck haché de cheval)","CAM23",null,"DW21","Yaourts","Desserts weekend",{"$f":"TabProduits[[#This Row],[Nom produit]]&TabProduits[[#This Row],[Libellé produit]]","v":"YaourtsDesserts weekend"}]
[null,null,null,null,null,null,null,null,null,null,null,null,null,null,null,null,null,null,null,null,null,null,null,null,null,null,null,null,null,null,null,null,null,null,null,null,"Tête roulée","VS24",null,null,null,null,null,null,null,"20 frites pour 1 repas","CAM24",null,"LMR01","Asperges","Légumes midi retraite",{"$f":"TabProduits[[#This Row],[Nom produit]]&TabProduits[[#This Row],[Libellé produit]]","v":"AspergesLégumes midi retraite"}]
[null,null,null,null,null,null,null,null,null,null,null,null,null,null,null,null,null,null,null,null,null,null,null,null,null,null,null,null,null,null,null,null,null,null,null,null,"Thon","VS25",null,null,null,null,null,null,null,"25 grammes pour 1 repas","CAM25",null,"LMR02","Avocat","Légumes midi retraite",{"$f":"TabProduits[[#This Row],[Nom produit]]&TabProduits[[#This Row],[Libellé produit]]","v":"AvocatLégumes midi retraite"}]
[null,null,null,null,null,null,null,null,null,null,null,null,null,null,null,null,null,null,null,null,null,null,null,null,null,null,null,null,null,null,null,null,null,null,null,null,"Viande cassoulet","VS26",null,null,null,null,null,null,null,"3 tranches pour 1 repas","CAM26",null,"LMR03","Carottes","Légumes midi retraite",{"$f":"TabProduits[[#This Row],[Nom produit]]&TabProduits[[#This Row],[Libellé produit]]","v":"CarottesLégumes midi retraite"}]
[null,null,null,null,null,null,null,null,null,null,null,null,null,null,null,null,null,null,null,null,null,null,null,null,null,null,null,null,null,null,null,null,null,null,null,null,"Viande choucroute","VS27",null,null,null,null,null,null,null,"5 cuillères pour 1 repas","CAM27",null,"LMR04","Céleri","Légumes midi retraite",{"$f":"TabProduits[[#This Row],[Nom produit]]&TabProduits[[#This Row],[Libellé produit]]","v":"CéleriLégumes midi retraite"}]
[null,null,null,null,null,null,null,null,null,null,null,null,null,null,null,null,null,null,null,null,null,null,null,null,null,null,null,null,null,null,null,null,null,null,null,null,"Viande paella","VS28",null,null,null,null,null,null,null,"50 grammes pour 1 repas","CAM28",null,"LMR05","Champignons","Légumes midi retraite",{"$f":"TabProduits[[#This Row],[Nom produit]]&TabProduits[[#This Row],[Libellé produit]]","v":"ChampignonsLégumes midi retraite"}]
[null,null,null,null,null,null,null,null,null,null,null,null,null,null,null,null,null,null,null,null,null,null,null,null,null,null,null,null,null,null,null,null,null,null,null,null,null,null,null,null,null,null,null,null,null,"Unité : 1 branche pour 1 repas","CAM29",null,"LMR06","Concombre","Légumes midi retraite",{"$f":"TabProduits[[#This Row],[Nom produit]]&TabProduits[[#This Row],[Libellé produit]]","v":"ConcombreLégumes midi retraite"}]
[null,null,null,null,null,null,null,null,null,null,null,null,null,null,null,null,null,null,null,null,null,null,null,null,null,null,null,null,null,null,null,null,null,null,null,null,null,null,null,null,null,null,null,null,null,"Unité : 1 morceau pour 2 repas","CAM30",null,"LMR07","Couscous","Légumes midi retraite",{"$f":"TabProduits[[#This Row],[Nom produit]]&TabProduits[[#This Row],[Libellé produit]]","v":"CouscousLégumes midi retraite"}]
[null,null,null,null,null,null,null,null,null,null,null,null,null,null,null,null,null,null,null,null,null,null,null,null,null,null,null,null,null,null,null,null,null,null,null,null,null,null,null,null,null,null,null,null,null,"Unité : 1 pour 1 repas","CAM31",null,"LMR08","Maïs","Légumes midi retraite",{"$f":"TabProduits[[#This Row],[Nom produit]]&TabProduits[[#This Row],[Libellé produit]]","v":"MaïsLégumes midi retraite"}]
[null,null,null,null,null,null,null,null,null,null,null,null,null,null,null,null,null,null,null,null,null,null,null,null,null,null,null,null,null,null,null,null,null,null,null,null,null,null,null,null,null,null,null,null,null,"Unité : 1 pour 2 repas","CAM32",null,"LMR09","Pâtes à la sauce tomates","Légumes midi retraite",{"$f":"TabProduits[[#This Row],[Nom produit]]&TabProduits[[#This Row],[Libellé produit]]","v":"Pâtes à la sauce tomatesLégumes midi retraite"}]
[null,null,null,null,null,null,null,null,null,null,null,null,null,null,null,null,null,null,null,null,null,null,null,null,null,null,null,null,null,null,null,null,null,null,null,null,null,null,null,null,null,null,null,null,null,"Unité : 1 pour 4 repas","CAM33",null,"LMR10","Pâtes au beurre","Légumes midi retraite",{"$f":"TabProduits[[#This Row],[Nom produit]]&TabProduits[[#This Row],[Libellé produit]]","v":"Pâtes au beurreLégumes midi retraite"}]
[null,null,null,null,null,null,null,null,null,null,null,null,null,null,null,null,null,null,null,null,null,null,null,null,null,null,null,null,null,null,null,null,null,null,null,null,null,null,null,null,null,null,null,null,null,"Unité : 1 tête pour 1 repas","CAM34",null,"LMR11","Poireau","Légumes midi retraite",{"$f":"TabProduits[[#This Row],[Nom produit]]&TabProduits[[#This Row],[Libellé produit]]","v":"PoireauLégumes midi retraite"}]
[null,null,null,null,null,null,null,null,null,null,null,null,null,null,null,null,null,null,null,null,null,null,null,null,null,null,null,null,null,null,null,null,null,null,null,null,null,null,null,null,null,null,null,null,null,"Unité : 2 à 4 pour 1 repas","CAM35",null,"LMR12","Pomme de terre","Légumes midi retraite",{"$f":"TabProduits[[#This Row],[Nom produit]]&TabProduits[[#This Row],[Libellé produit]]","v":"Pomme de terreLégumes midi retraite"}]
[null,null,null,null,null,null,null,null,null,null,null,null,null,null,null,null,null,null,null,null,null,null,null,null,null,null,null,null,null,null,null,null,null,null,null,null,null,null,null,null,null,null,null,null,null,"Unité : 2 pour 1 repas","CAM36",null,"LMR13","Purée","Légumes midi retraite",{"$f":"TabProduits[[#This Row],[Nom produit]]&TabProduits[[#This Row],[Libellé produit]]","v":"PuréeLégumes midi retraite"}]
[null,null,null,null,null,null,null,null,null,null,null,null,null,null,null,null,null,null,null,null,null,null,null,null,null,null,null,null,null,null,null,null,null,null,null,null,null,null,null,null,null,null,null,null,null,null,null,null,"LMR14","Radis","Légumes midi retraite",{"$f":"TabProduits[[#This Row],[Nom produit]]&TabProduits[[#This Row],[Libellé produit]]","v":"RadisLégumes midi retraite"}]
[null,null,null,null,null,null,null,null,null,null,null,null,null,null,null,null,null,null,null,null,null,null,null,null,null,null,null,null,null,null,null,null,null,null,null,null,null,null,null,null,null,null,null,null,null,null,null,null,"LMR15","Riz","Légumes midi retraite",{"$f":"TabProduits[[#This Row],[Nom produit]]&TabProduits[[#This Row],[Libellé produit]]","v":"RizLégumes midi retraite"}]
[null,null,null,null,null,null,null,null,null,null,null,null,null,null,null,null,null,null,null,null,null,null,null,null,null,null,null,null,null,null,null,null,null,null,null,null,null,null,null,null,null,null,null,null,null,null,null,null,"LMR16","Salade","Légumes midi retraite",{"$f":"TabProduits[[#This Row],[Nom produit]]&TabProduits[[#This Row],[Libellé produit]]","v":"SaladeLégumes midi retraite"}]
[null,null,null,null,null,null,null,null,null,null,null,null,null,null,null,null,null,null,null,null,null,null,null,null,null,null,null,null,null,null,null,null,null,null,null,null,null,null,null,null,null,null,null,null,null,null,null,null,"LMR17","Tomates","Légumes midi retraite",{"$f":"TabProduits[[#This Row],[Nom produit]]&TabProduits[[#This Row],[Libellé produit]]","v":"TomatesLégumes midi retraite"}]
[null,null,null,null,null,null,null,null,null,null,null,null,null,null,null,null,null,null,null,null,null,null,null,null,null,null,null,null,null,null,null,null,null,null,null,null,null,null,null,null,null,null,null,null,null,null,null,null,"LSLM01","Cassoulet","Légumes soirs lundi mardi",{"$f":"TabProduits[[#This Row],[Nom produit]]&TabProduits[[#This Row],[Libellé produit]]","v":"CassouletLégumes soirs lundi mardi"}]
[null,null,null,null,null,null,null,null,null,null,null,null,null,null,null,null,null,null,null,null,null,null,null,null,null,null,null,null,null,null,null,null,null,null,null,null,null,null,null,null,null,null,null,null,null,null,null,null,"LSLM02","Choucroute","Légumes soirs lundi mardi",{"$f":"TabProduits[[#This Row],[Nom produit]]&TabProduits[[#This Row],[Libellé produit]]","v":"ChoucrouteLégumes soirs lundi mardi"}]
[null,null,null,null,null,null,null,null,null,null,null,null,null,null,null,null,null,null,null,null,null,null,null,null,null,null,null,null,null,null,null,null,null,null,null,null,null,null,null,null,null,null,null,null,null,null,null,null,"LSLM03","Chou-fleur","Légumes soirs lundi mardi",{"$f":"TabProduits[[#This Row],[Nom produit]]&TabProduits[[#This Row],[Libellé produit]]","v":"Chou-fleurLégumes soirs lundi mardi"}]
[null,null,null,null,null,null,null,null,null,null,null,null,null,null,null,null,null,null,null,null,null,null,null,null,null,null,null,null,null,null,null,null,null,null,null,null,null,null,null,null,null,null,null,null,null,null,null,null,"LSLM04","Choux de Bruxelles","Légumes soirs lundi mardi",{"$f":"TabProduits[[#This Row],[Nom produit]]&TabProduits[[#This Row],[Libellé produit]]","v":"Choux de BruxellesLégumes soirs lundi mardi"}]
[null,null,null,null,null,null,null,null,null,null,null,null,null,null,null,null,null,null,null,null,null,null,null,null,null,null,null,null,null,null,null,null,null,null,null,null,null,null,null,null,null,null,null,null,null,null,null,null,"LSLM05","Couscous","Légumes soirs lundi mardi",{"$f":"TabProduits[[#This Row],[Nom produit]]&TabProduits[[#This Row],[Libellé produit]]","v":"CouscousLégumes soirs lundi mardi"}]
[null,null,null,null,null,null,null,null,null,null,null,null,null,null,null,null,null,null,null,null,null,null,null,null,null,null,null,null,null,null,null,null,null,null,null,null,null,null,null,null,null,null,null,null,null,null,null,null,"LSLM06","Endives","Légumes soirs lundi mardi",{"$f":"TabProduits[[#This Row],[Nom produit]]&TabProduits[[#This Row],[Libellé produit]]","v":"EndivesLégumes soirs lundi mardi"}]
[null,null,null,null,null,null,null,null,null,null,null,null,null,null,null,null,null,null,null,null,null,null,null,null,null,null,null,null,null,null,null,null,null,null,null,null,null,null,null,null,null,null,null,null,null,null,null,null,"LSLM07","Haricots verts","Légumes soirs lundi mardi",{"$f":"TabProduits[[#This Row],[Nom produit]]&TabProduits[[#This Row],[Libellé produit]]","v":"Haricots vertsLégumes soirs lundi mardi"}]
[null,null,null,null,null,null,null,null,null,null,null,null,null,null,null,null,null,null,null,null,null,null,null,null,null,null,null,null,null,null,null,null,null,null,null,null,null,null,null,null,null,null,null,null,null,null,null,null,"LSLM08","Maïs","Légumes soirs lundi mardi",{"$f":"TabProduits[[#This Row],[Nom produit]]&TabProduits[[#This Row],[Libellé produit]]","v":"MaïsLégumes soirs lundi mardi"}]
[null,null,null,null,null,null,null,null,null,null,null,null,null,null,null,null,null,null,null,null,null,null,null,null,null,null,null,null,null,null,null,null,null,null,null,null,null,null,null,null,null,null,null,null,null,null,null,null,"LSLM09","Paella","Légumes soirs lundi mardi",{"$f":"TabProduits[[#This Row],[Nom produit]]&TabProduits[[#This Row],[Libellé produit]]","v":"PaellaLégumes soirs lundi mardi"}]
[null,null,null,null,null,null,null,null,null,null,null,null,null,null,null,null,null,null,null,null,null,null,null,null,null,null,null,null,null,null,null,null,null,null,null,null,null,null,null,null,null,null,null,null,null,null,null,null,"LSLM10","Poireau","Légumes soirs lundi mardi",{"$f":"TabProduits[[#This Row],[Nom produit]]&TabProduits[[#This Row],[Libellé produit]]","v":"PoireauLégumes soirs lundi mardi"}]
[null,null,null,null,null,null,null,null,null,null,null,null,null,null,null,null,null,null,null,null,null,null,null,null,null,null,null,null,null,null,null,null,null,null,null,null,null,null,null,null,null,null,null,null,null,null,null,null,"LSLM11","Pomme de terre","Légumes soirs lundi mardi",{"$f":"TabProduits[[#This Row],[Nom produit]]&TabProduits[[#This Row],[Libellé produit]]","v":"Pomme de terreLégumes soirs lundi mardi"}]
[null,null,null,null,null,null,null,null,null,null,null,null,null,null,null,null,null,null,null,null,null,null,null,null,null,null,null,null,null,null,null,null,null,null,null,null,null,null,null,null,null,null,null,null,null,null,null,null,"LSLM12","Purée","Légumes soirs lundi mardi",{"$f":"TabProduits[[#This Row],[Nom produit]]&TabProduits[[#This Row],[Libellé produit]]","v":"PuréeLégumes soirs lundi mardi"}]
[null,null,null,null,null,null,null,null,null,null,null,null,null,null,null,null,null,null,null,null,null,null,null,null,null,null,null,null,null,null,null,null,null,null,null,null,null,null,null,null,null,null,null,null,null,null,null,null,"LSLM13","Quenelles","Légumes soirs lundi mardi",{"$f":"TabProduits[[#This Row],[Nom produit]]&TabProduits[[#This Row],[Libellé produit]]","v":"QuenellesLégumes soirs lundi mardi"}]
[null,null,null,null,null,null,null,null,null,null,null,null,null,null,null,null,null,null,null,null,null,null,null,null,null,null,null,null,null,null,null,null,null,null,null,null,null,null,null,null,null,null,null,null,null,null,null,null,"LSLM14","Riz","Légumes soirs lundi mardi",{"$f":"TabProduits[[#This Row],[Nom produit]]&TabProduits[[#This Row],[Libellé produit]]","v":"RizLégumes soirs lundi mardi"}]
[null,null,null,null,null,null,null,null,null,null,null,null,null,null,null,null,null,null,null,null,null,null,null,null,null,null,null,null,null,null,null,null,null,null,null,null,null,null,null,null,null,null,null,null,null,null,null,null,"LSMJ01","Macédoine de légumes","Légumes soirs mercredi jeudi",{"$f":"TabProduits[[#This Row],[Nom produit]]&TabProduits[[#This Row],[Libellé produit]]","v":"Macédoine de légumesLégumes soirs mercredi jeudi"}]
[null,null,null,null,null,null,null,null,null,null,null,null,null,null,null,null,null,null,null,null,null,null,null,null,null,null,null,null,null,null,null,null,null,null,null,null,null,null,null,null,null,null,null,null,null,null,null,null,"LSMJ02","Petits pois","Légumes soirs mercredi jeudi",{"$f":"TabProduits[[#This Row],[Nom produit]]&TabProduits[[#This Row],[Libellé produit]]","v":"Petits poisLégumes soirs mercredi jeudi"}]
[null,null,null,null,null,null,null,null,null,null,null,null,null,null,null,null,null,null,null,null,null,null,null,null,null,null,null,null,null,null,null,null,null,null,null,null,null,null,null,null,null,null,null,null,null,null,null,null,"LSMJ03","Petits pois et jeunes carottes","Légumes soirs mercredi jeudi",{"$f":"TabProduits[[#This Row],[Nom produit]]&TabProduits[[#This Row],[Libellé produit]]","v":"Petits pois et jeunes carottesLégumes soirs mercredi jeudi"}]
[null,null,null,null,null,null,null,null,null,null,null,null,null,null,null,null,null,null,null,null,null,null,null,null,null,null,null,null,null,null,null,null,null,null,null,null,null,null,null,null,null,null,null,null,null,null,null,null,"LSMJ04","Ratatouille","Légumes soirs mercredi jeudi",{"$f":"TabProduits[[#This Row],[Nom produit]]&TabProduits[[#This Row],[Libellé produit]]","v":"RatatouilleLégumes soirs mercredi jeudi"}]
[null,null,null,null,null,null,null,null,null,null,null,null,null,null,null,null,null,null,null,null,null,null,null,null,null,null,null,null,null,null,null,null,null,null,null,null,null,null,null,null,null,null,null,null,null,null,null,null,"LSMJ05","Raviolis","Légumes soirs mercredi jeudi",{"$f":"TabProduits[[#This Row],[Nom produit]]&TabProduits[[#This Row],[Libellé produit]]","v":"RaviolisLégumes soirs mercredi jeudi"}]
[null,null,null,null,null,null,null,null,null,null,null,null,null,null,null,null,null,null,null,null,null,null,null,null,null,null,null,null,null,null,null,null,null,null,null,null,null,null,null,null,null,null,null,null,null,null,null,null,"LSMJ06","Tomates pelées","Légumes soirs mercredi jeudi",{"$f":"TabProduits[[#This Row],[Nom produit]]&TabProduits[[#This Row],[Libellé produit]]","v":"Tomates peléesLégumes soirs mercredi jeudi"}]
[null,null,null,null,null,null,null,null,null,null,null,null,null,null,null,null,null,null,null,null,null,null,null,null,null,null,null,null,null,null,null,null,null,null,null,null,null,null,null,null,null,null,null,null,null,null,null,null,"LSV01","Asperges","Légumes soirs vendredi",{"$f":"TabProduits[[#This Row],[Nom produit]]&TabProduits[[#This Row],[Libellé produit]]","v":"AspergesLégumes soirs vendredi"}]
[null,null,null,null,null,null,null,null,null,null,null,null,null,null,null,null,null,null,null,null,null,null,null,null,null,null,null,null,null,null,null,null,null,null,null,null,null,null,null,null,null,null,null,null,null,null,null,null,"LSV02","Avocat","Légumes soirs vendredi",{"$f":"TabProduits[[#This Row],[Nom produit]]&TabProduits[[#This Row],[Libellé produit]]","v":"AvocatLégumes soirs vendredi"}]
[null,null,null,null,null,null,null,null,null,null,null,null,null,null,null,null,null,null,null,null,null,null,null,null,null,null,null,null,null,null,null,null,null,null,null,null,null,null,null,null,null,null,null,null,null,null,null,null,"LSV03","Betterave rouge","Légumes soirs vendredi",{"$f":"TabProduits[[#This Row],[Nom produit]]&TabProduits[[#This Row],[Libellé produit]]","v":"Betterave rougeLégumes soirs vendredi"}]
[null,null,null,null,null,null,null,null,null,null,null,null,null,null,null,null,null,null,null,null,null,null,null,null,null,null,null,null,null,null,null,null,null,null,null,null,null,null,null,null,null,null,null,null,null,null,null,null,"LSV04","Carottes","Légumes soirs vendredi",{"$f":"TabProduits[[#This Row],[Nom produit]]&TabProduits[[#This Row],[Libellé produit]]","v":"CarottesLégumes soirs vendredi"}]
[null,null,null,null,null,null,null,null,null,null,null,null,null,null,null,null,null,null,null,null,null,null,null,null,null,null,null,null,null,null,null,null,null,null,null,null,null,null,null,null,null,null,null,null,null,null,null,null,"LSV05","Céleri","Légumes soirs vendredi",{"$f":"TabProduits[[#This Row],[Nom produit]]&TabProduits[[#This Row],[Libellé produit]]","v":"CéleriLégumes soirs vendredi"}]
[null,null,null,null,null,null,null,null,null,null,null,null,null,null,null,null,null,null,null,null,null,null,null,null,null,null,null,null,null,null,null,null,null,null,null,null,null,null,null,null,null,null,null,null,null,null,null,null,"LSV06","Champignons","Légumes soirs vendredi",{"$f":"TabProduits[[#This Row],[Nom produit]]&TabProduits[[#This Row],[Libellé produit]]","v":"ChampignonsLégumes soirs vendredi"}]
[null,null,null,null,null,null,null,null,null,null,null,null,null,null,null,null,null,null,null,null,null,null,null,null,null,null,null,null,null,null,null,null,null,null,null,null,null,null,null,null,null,null,null,null,null,null,null,null,"LSV07","Concombre","Légumes soirs vendredi",{"$f":"TabProduits[[#This Row],[Nom produit]]&TabProduits[[#This Row],[Libellé produit]]","v":"ConcombreLégumes soirs vendredi"}]
[null,null,null,null,null,null,null,null,null,null,null,null,null,null,null,null,null,null,null,null,null,null,null,null,null,null,null,null,null,null,null,null,null,null,null,null,null,null,null,null,null,null,null,null,null,null,null,null,"LSV08","Radis","Légumes soirs vendredi",{"$f":"TabProduits[[#This Row],[Nom produit]]&TabProduits[[#This Row],[Libellé produit]]","v":"RadisLégumes soirs vendredi"}]
[null,null,null,null,null,null,null,null,null,null,null,null,null,null,null,null,null,null,null,null,null,null,null,null,null,null,null,null,null,null,null,null,null,null,null,null,null,null,null,null,null,null,null,null,null,null,null,null,"LSV09","Salade","Légumes soirs vendredi",{"$f":"TabProduits[[#This Row],[Nom produit]]&TabProduits[[#This Row],[Libellé produit]]","v":"SaladeLégumes soirs vendredi"}]
[null,null,null,null,null,null,null,null,null,null,null,null,null,null,null,null,null,null,null,null,null,null,null,null,null,null,null,null,null,null,null,null,null,null,null,null,null,null,null,null,null,null,null,null,null,null,null,null,"LSV10","Salsifis","Légumes soirs vendredi",{"$f":"TabProduits[[#This Row],[Nom produit]]&TabProduits[[#This Row],[Libellé produit]]","v":"SalsifisLégumes soirs vendredi"}]
[null,null,null,null,null,null,null,null,null,null,null,null,null,null,null,null,null,null,null,null,null,null,null,null,null,null,null,null,null,null,null,null,null,null,null,null,null,null,null,null,null,null,null,null,null,null,null,null,"LSV11","Tomates","Légumes soirs vendredi",{"$f":"TabProduits[[#This Row],[Nom produit]]&TabProduits[[#This Row],[Libellé produit]]","v":"TomatesLégumes soirs vendredi"}]
[null,null,null,null,null,null,null,null,null,null,null,null,null,null,null,null,null,null,null,null,null,null,null,null,null,null,null,null,null,null,null,null,null,null,null,null,null,null,null,null,null,null,null,null,null,null,null,null,"LWS01","Pâtes à la sauce tomates","Légumes weekend samedi",{"$f":"TabProduits[[#This Row],[Nom produit]]&TabProduits[[#This Row],[Libellé produit]]","v":"Pâtes à la sauce tomatesLégumes weekend samedi"}]
[null,null,null,null,null,null,null,null,null,null,null,null,null,null,null,null,null,null,null,null,null,null,null,null,null,null,null,null,null,null,null,null,null,null,null,null,null,null,null,null,null,null,null,null,null,null,null,null,"LWS02","Pâtes au beurre","Légumes weekend samedi",{"$f":"TabProduits[[#This Row],[Nom produit]]&TabProduits[[#This Row],[Libellé produit]]","v":"Pâtes au beurreLégumes weekend samedi"}]
[null,null,null,null,null,null,null,null,null,null,null,null,null,null,null,null,null,null,null,null,null,null,null,null,null,null,null,null,null,null,null,null,null,null,null,null,null,null,null,null,null,null,null,null,null,null,null,null,"LWS03","Pâtes au fromage râpé","Légumes weekend samedi",{"$f":"TabProduits[[#This Row],[Nom produit]]&TabProduits[[#This Row],[Libellé produit]]","v":"Pâtes au fromage râpéLégumes weekend samedi"}]
[null,null,null,null,null,null,null,null,null,null,null,null,null,null,null,null,null,null,null,null,null,null,null,null,null,null,null,null,null,null,null,null,null,null,null,null,null,null,null,null,null,null,null,null,null,null,null,null,"LWD01","Asperges","Légumes weekend dimanche",{"$f":"TabProduits[[#This Row],[Nom produit]]&TabProduits[[#This Row],[Libellé produit]]","v":"AspergesLégumes weekend dimanche"}]
[null,null,null,null,null,null,null,null,null,null,null,null,null,null,null,null,null,null,null,null,null,null,null,null,null,null,null,null,null,null,null,null,null,null,null,null,null,null,null,null,null,null,null,null,null,null,null,null,"LWD02","Chips","Légumes weekend dimanche",{"$f":"TabProduits[[#This Row],[Nom produit]]&TabProduits[[#This Row],[Libellé produit]]","v":"ChipsLégumes weekend dimanche"}]
[null,null,null,null,null,null,null,null,null,null,null,null,null,null,null,null,null,null,null,null,null,null,null,null,null,null,null,null,null,null,null,null,null,null,null,null,null,null,null,null,null,null,null,null,null,null,null,null,"LWD03","Frites","Légumes weekend dimanche",{"$f":"TabProduits[[#This Row],[Nom produit]]&TabProduits[[#This Row],[Libellé produit]]","v":"FritesLégumes weekend dimanche"}]
[null,null,null,null,null,null,null,null,null,null,null,null,null,null,null,null,null,null,null,null,null,null,null,null,null,null,null,null,null,null,null,null,null,null,null,null,null,null,null,null,null,null,null,null,null,null,null,null,"LWD04","Haricots verts","Légumes weekend dimanche",{"$f":"TabProduits[[#This Row],[Nom produit]]&TabProduits[[#This Row],[Libellé produit]]","v":"Haricots vertsLégumes weekend dimanche"}]
[null,null,null,null,null,null,null,null,null,null,null,null,null,null,null,null,null,null,null,null,null,null,null,null,null,null,null,null,null,null,null,null,null,null,null,null,null,null,null,null,null,null,null,null,null,null,null,null,"VMR01","Rôti d'agneau","Viandes midi retraite",{"$f":"TabProduits[[#This Row],[Nom produit]]&TabProduits[[#This Row],[Libellé produit]]","v":"Rôti d'agneauViandes midi retraite"}]
[null,null,null,null,null,null,null,null,null,null,null,null,null,null,null,null,null,null,null,null,null,null,null,null,null,null,null,null,null,null,null,null,null,null,null,null,null,null,null,null,null,null,null,null,null,null,null,null,"VMR02","Rôti de bœuf","Viandes midi retraite",{"$f":"TabProduits[[#This Row],[Nom produit]]&TabProduits[[#This Row],[Libellé produit]]","v":"Rôti de bœufViandes midi retraite"}]
[null,null,null,null,null,null,null,null,null,null,null,null,null,null,null,null,null,null,null,null,null,null,null,null,null,null,null,null,null,null,null,null,null,null,null,null,null,null,null,null,null,null,null,null,null,null,null,null,"VMR03","Rôti de cheval","Viandes midi retraite",{"$f":"TabProduits[[#This Row],[Nom produit]]&TabProduits[[#This Row],[Libellé produit]]","v":"Rôti de chevalViandes midi retraite"}]
[null,null,null,null,null,null,null,null,null,null,null,null,null,null,null,null,null,null,null,null,null,null,null,null,null,null,null,null,null,null,null,null,null,null,null,null,null,null,null,null,null,null,null,null,null,null,null,null,"VMR04","Rôti de porc","Viandes midi retraite",{"$f":"TabProduits[[#This Row],[Nom produit]]&TabProduits[[#This Row],[Libellé produit]]","v":"Rôti de porcViandes midi retraite"}]
[null,null,null,null,null,null,null,null,null,null,null,null,null,null,null,null,null,null,null,null,null,null,null,null,null,null,null,null,null,null,null,null,null,null,null,null,null,null,null,null,null,null,null,null,null,null,null,null,"VMR05","Rôti de veau","Viandes midi retraite",{"$f":"TabProduits[[#This Row],[Nom produit]]&TabProduits[[#This Row],[Libellé produit]]","v":"Rôti de veauViandes midi retraite"}]
[null,null,null,null,null,null,null,null,null,null,null,null,null,null,null,null,null,null,null,null,null,null,null,null,null,null,null,null,null,null,null,null,null,null,null,null,null,null,null,null,null,null,null,null,null,null,null,null,"VMW01","Agneau","Viandes midi weekend",{"$f":"TabProduits[[#This Row],[Nom produit]]&TabProduits[[#This Row],[Libellé produit]]","v":"AgneauViandes midi weekend"}]
[null,null,null,null,null,null,null,null,null,null,null,null,null,null,null,null,null,null,null,null,null,null,null,null,null,null,null,null,null,null,null,null,null,null,null,null,null,null,null,null,null,null,null,null,null,null,null,null,"VMW02","Bœuf","Viandes midi weekend",{"$f":"TabProduits[[#This Row],[Nom produit]]&TabProduits[[#This Row],[Libellé produit]]","v":"BœufViandes midi weekend"}]
[null,null,null,null,null,null,null,null,null,null,null,null,null,null,null,null,null,null,null,null,null,null,null,null,null,null,null,null,null,null,null,null,null,null,null,null,null,null,null,null,null,null,null,null,null,null,null,null,"VMW03","Cheval","Viandes midi weekend",{"$f":"TabProduits[[#This Row],[Nom produit]]&TabProduits[[#This Row],[Libellé produit]]","v":"ChevalViandes midi weekend"}]
[null,null,null,null,null,null,null,null,null,null,null,null,null,null,null,null,null,null,null,null,null,null,null,null,null,null,null,null,null,null,null,null,null,null,null,null,null,null,null,null,null,null,null,null,null,null,null,null,"VMW04","Dinde","Viandes midi weekend",{"$f":"TabProduits[[#This Row],[Nom produit]]&TabProduits[[#This Row],[Libellé produit]]","v":"DindeViandes midi weekend"}]
[null,null,null,null,null,null,null,null,null,null,null,null,null,null,null,null,null,null,null,null,null,null,null,null,null,null,null,null,null,null,null,null,null,null,null,null,null,null,null,null,null,null,null,null,null,null,null,null,"VMW05","Poisson","Viandes midi weekend",{"$f":"TabProduits[[#This Row],[Nom produit]]&TabProduits[[#This Row],[Libellé produit]]","v":"PoissonViandes midi weekend"}]
[null,null,null,null,null,null,null,null,null,null,null,null,null,null,null,null,null,null,null,null,null,null,null,null,null,null,null,null,null,null,null,null,null,null,null,null,null,null,null,null,null,null,null,null,null,null,null,null,"VMW06","Porc","Viandes midi weekend",{"$f":"TabProduits[[#This Row],[Nom produit]]&TabProduits[[#This Row],[Libellé produit]]","v":"PorcViandes midi weekend"}]
[null,null,null,null,null,null,null,null,null,null,null,null,null,null,null,null,null,null,null,null,null,null,null,null,null,null,null,null,null,null,null,null,null,null,null,null,null,null,null,null,null,null,null,null,null,null,null,null,"VMW07","Veau","Viandes midi weekend",{"$f":"TabProduits[[#This Row],[Nom produit]]&TabProduits[[#This Row],[Libellé produit]]","v":"VeauViandes midi weekend"}]
[null,null,null,null,null,null,null,null,null,null,null,null,null,null,null,null,null,null,null,null,null,null,null,null,null,null,null,null,null,null,null,null,null,null,null,null,null,null,null,null,null,null,null,null,null,null,null,null,"VS01","Bifteck haché de bœuf","Viandes soirs",{"$f":"TabProduits[[#This Row],[Nom produit]]&TabProduits[[#This Row],[Libellé produit]]","v":"Bifteck haché de bœufViandes soirs"}]
[null,null,null,null,null,null,null,null,null,null,null,null,null,null,null,null,null,null,null,null,null,null,null,null,null,null,null,null,null,null,null,null,null,null,null,null,null,null,null,null,null,null,null,null,null,null,null,null,"VS02","Bifteck haché de cheval","Viandes soirs",{"$f":"TabProduits[[#This Row],[Nom produit]]&TabProduits[[#This Row],[Libellé produit]]","v":"Bifteck haché de chevalViandes soirs"}]
[null,null,null,null,null,null,null,null,null,null,null,null,null,null,null,null,null,null,null,null,null,null,null,null,null,null,null,null,null,null,null,null,null,null,null,null,null,null,null,null,null,null,null,null,null,null,null,null,"VS03","Bifteck haché de veau","Viandes soirs",{"$f":"TabProduits[[#This Row],[Nom produit]]&TabProduits[[#This Row],[Libellé produit]]","v":"Bifteck haché de veauViandes soirs"}]
[null,null,null,null,null,null,null,null,null,null,null,null,null,null,null,null,null,null,null,null,null,null,null,null,null,null,null,null,null,null,null,null,null,null,null,null,null,null,null,null,null,null,null,null,null,null,null,null,"VS04","Bouchée à la reine","Viandes soirs",{"$f":"TabProduits[[#This Row],[Nom produit]]&TabProduits[[#This Row],[Libellé produit]]","v":"Bouchée à la reineViandes soirs"}]
[null,null,null,null,null,null,null,null,null,null,null,null,null,null,null,null,null,null,null,null,null,null,null,null,null,null,null,null,null,null,null,null,null,null,null,null,null,null,null,null,null,null,null,null,null,null,null,null,"VS05","Boudin","Viandes soirs",{"$f":"TabProduits[[#This Row],[Nom produit]]&TabProduits[[#This Row],[Libellé produit]]","v":"BoudinViandes soirs"}]
[null,null,null,null,null,null,null,null,null,null,null,null,null,null,null,null,null,null,null,null,null,null,null,null,null,null,null,null,null,null,null,null,null,null,null,null,null,null,null,null,null,null,null,null,null,null,null,null,"VS06","Cervelas","Viandes soirs",{"$f":"TabProduits[[#This Row],[Nom produit]]&TabProduits[[#This Row],[Libellé produit]]","v":"CervelasViandes soirs"}]
[null,null,null,null,null,null,null,null,null,null,null,null,null,null,null,null,null,null,null,null,null,null,null,null,null,null,null,null,null,null,null,null,null,null,null,null,null,null,null,null,null,null,null,null,null,null,null,null,"VS07","Cœur","Viandes soirs",{"$f":"TabProduits[[#This Row],[Nom produit]]&TabProduits[[#This Row],[Libellé produit]]","v":"CœurViandes soirs"}]
[null,null,null,null,null,null,null,null,null,null,null,null,null,null,null,null,null,null,null,null,null,null,null,null,null,null,null,null,null,null,null,null,null,null,null,null,null,null,null,null,null,null,null,null,null,null,null,null,"VS08","Croque-monsieur","Viandes soirs",{"$f":"TabProduits[[#This Row],[Nom produit]]&TabProduits[[#This Row],[Libellé produit]]","v":"Croque-monsieurViandes soirs"}]
[null,null,null,null,null,null,null,null,null,null,null,null,null,null,null,null,null,null,null,null,null,null,null,null,null,null,null,null,null,null,null,null,null,null,null,null,null,null,null,null,null,null,null,null,null,null,null,null,"VS09","Foie","Viandes soirs",{"$f":"TabProduits[[#This Row],[Nom produit]]&TabProduits[[#This Row],[Libellé produit]]","v":"FoieViandes soirs"}]
[null,null,null,null,null,null,null,null,null,null,null,null,null,null,null,null,null,null,null,null,null,null,null,null,null,null,null,null,null,null,null,null,null,null,null,null,null,null,null,null,null,null,null,null,null,null,null,null,"VS10","Fromage de tête","Viandes soirs",{"$f":"TabProduits[[#This Row],[Nom produit]]&TabProduits[[#This Row],[Libellé produit]]","v":"Fromage de têteViandes soirs"}]
[null,null,null,null,null,null,null,null,null,null,null,null,null,null,null,null,null,null,null,null,null,null,null,null,null,null,null,null,null,null,null,null,null,null,null,null,null,null,null,null,null,null,null,null,null,null,null,null,"VS11","Jambon","Viandes soirs",{"$f":"TabProduits[[#This Row],[Nom produit]]&TabProduits[[#This Row],[Libellé produit]]","v":"JambonViandes soirs"}]
[null,null,null,null,null,null,null,null,null,null,null,null,null,null,null,null,null,null,null,null,null,null,null,null,null,null,null,null,null,null,null,null,null,null,null,null,null,null,null,null,null,null,null,null,null,null,null,null,"VS12","Jambonneau","Viandes soirs",{"$f":"TabProduits[[#This Row],[Nom produit]]&TabProduits[[#This Row],[Libellé produit]]","v":"JambonneauViandes soirs"}]
[null,null,null,null,null,null,null,null,null,null,null,null,null,null,null,null,null,null,null,null,null,null,null,null,null,null,null,null,null,null,null,null,null,null,null,null,null,null,null,null,null,null,null,null,null,null,null,null,"VS13","Mortadelle","Viandes soirs",{"$f":"TabProduits[[#This Row],[Nom produit]]&TabProduits[[#This Row],[Libellé produit]]","v":"MortadelleViandes soirs"}]
[null,null,null,null,null,null,null,null,null,null,null,null,null,null,null,null,null,null,null,null,null,null,null,null,null,null,null,null,null,null,null,null,null,null,null,null,null,null,null,null,null,null,null,null,null,null,null,null,"VS14","Œufs","Viandes soirs",{"$f":"TabProduits[[#This Row],[Nom produit]]&TabProduits[[#This Row],[Libellé produit]]","v":"ŒufsViandes soirs"}]
[null,null,null,null,null,null,null,null,null,null,null,null,null,null,null,null,null,null,null,null,null,null,null,null,null,null,null,null,null,null,null,null,null,null,null,null,null,null,null,null,null,null,null,null,null,null,null,null,"VS15","Pizza","Viandes soirs",{"$f":"TabProduits[[#This Row],[Nom produit]]&TabProduits[[#This Row],[Libellé produit]]","v":"PizzaViandes soirs"}]
[null,null,null,null,null,null,null,null,null,null,null,null,null,null,null,null,null,null,null,null,null,null,null,null,null,null,null,null,null,null,null,null,null,null,null,null,null,null,null,null,null,null,null,null,null,null,null,null,"VS16","Poisson","Viandes soirs",{"$f":"TabProduits[[#This Row],[Nom produit]]&TabProduits[[#This Row],[Libellé produit]]","v":"PoissonViandes soirs"}]
[null,null,null,null,null,null,null,null,null,null,null,null,null,null,null,null,null,null,null,null,null,null,null,null,null,null,null,null,null,null,null,null,null,null,null,null,null,null,null,null,null,null,null,null,null,null,null,null,"VS17","Quiche lorraine","Viandes soirs",{"$f":"TabProduits[[#This Row],[Nom produit]]&TabProduits[[#This Row],[Libellé produit]]","v":"Quiche lorraineViandes soirs"}]
[null,null,null,null,null,null,null,null,null,null,null,null,null,null,null,null,null,null,null,null,null,null,null,null,null,null,null,null,null,null,null,null,null,null,null,null,null,null,null,null,null,null,null,null,null,null,null,null,"VS18","Roulade à la pistache","Viandes soirs",{"$f":"TabProduits[[#This Row],[Nom produit]]&TabProduits[[#This Row],[Libellé produit]]","v":"Roulade à la pistacheViandes soirs"}]
[null,null,null,null,null,null,null,null,null,null,null,null,null,null,null,null,null,null,null,null,null,null,null,null,null,null,null,null,null,null,null,null,null,null,null,null,null,null,null,null,null,null,null,null,null,null,null,null,"VS19","Roulé au fromage","Viandes soirs",{"$f":"TabProduits[[#This Row],[Nom produit]]&TabProduits[[#This Row],[Libellé produit]]","v":"Roulé au fromageViandes soirs"}]
[null,null,null,null,null,null,null,null,null,null,null,null,null,null,null,null,null,null,null,null,null,null,null,null,null,null,null,null,null,null,null,null,null,null,null,null,null,null,null,null,null,null,null,null,null,null,null,null,"VS20","Salami","Viandes soirs",{"$f":"TabProduits[[#This Row],[Nom produit]]&TabProduits[[#This Row],[Libellé produit]]","v":"SalamiViandes soirs"}]
[null,null,null,null,null,null,null,null,null,null,null,null,null,null,null,null,null,null,null,null,null,null,null,null,null,null,null,null,null,null,null,null,null,null,null,null,null,null,null,null,null,null,null,null,null,null,null,null,"VS21","Saucisses","Viandes soirs",{"$f":"TabProduits[[#This Row],[Nom produit]]&TabProduits[[#This Row],[Libellé produit]]","v":"SaucissesViandes soirs"}]
[null,null,null,null,null,null,null,null,null,null,null,null,null,null,null,null,null,null,null,null,null,null,null,null,null,null,null,null,null,null,null,null,null,null,null,null,null,null,null,null,null,null,null,null,null,null,null,null,"VS22","Saucisson","Viandes soirs",{"$f":"TabProduits[[#This Row],[Nom produit]]&TabProduits[[#This Row],[Libellé produit]]","v":"SaucissonViandes soirs"}]
[null,null,null,null,null,null,null,null,null,null,null,null,null,null,null,null,null,null,null,null,null,null,null,null,null,null,null,null,null,null,null,null,null,null,null,null,null,null,null,null,null,null,null,null,null,null,null,null,"VS23","Tête persillée","Viandes soirs",{"$f":"TabProduits[[#This Row],[Nom produit]]&TabProduits[[#This Row],[Libellé produit]]","v":"Tête persilléeViandes soirs"}]
[null,null,null,null,null,null,null,null,null,null,null,null,null,null,null,null,null,null,null,null,null,null,null,null,null,null,null,null,null,null,null,null,null,null,null,null,null,null,null,null,null,null,null,null,null,null,null,null,"VS24","Tête roulée","Viandes soirs",{"$f":"TabProduits[[#This Row],[Nom produit]]&TabProduits[[#This Row],[Libellé produit]]","v":"Tête rouléeViandes soirs"}]
[null,null,null,null,null,null,null,null,null,null,null,null,null,null,null,null,null,null,null,null,null,null,null,null,null,null,null,null,null,null,null,null,null,null,null,null,null,null,null,null,null,null,null,null,null,null,null,null,"VS25","Thon","Viandes soirs",{"$f":"TabProduits[[#This Row],[Nom produit]]&TabProduits[[#This Row],[Libellé produit]]","v":"ThonViandes soirs"}]
[null,null,null,null,null,null,null,null,null,null,null,null,null,null,null,null,null,null,null,null,null,null,null,null,null,null,null,null,null,null,null,null,null,null,null,null,null,null,null,null,null,null,null,null,null,null,null,null,"VS26","Viande cassoulet","Viandes soirs",{"$f":"TabProduits[[#This Row],[Nom produit]]&TabProduits[[#This Row],[Libellé produit]]","v":"Viande cassouletViandes soirs"}]
[null,null,null,null,null,null,null,null,null,null,null,null,null,null,null,null,null,null,null,null,null,null,null,null,null,null,null,null,null,null,null,null,null,null,null,null,null,null,null,null,null,null,null,null,null,null,null,null,"VS27","Viande choucroute","Viandes soirs",{"$f":"TabProduits[[#This Row],[Nom produit]]&TabProduits[[#This Row],[Libellé produit]]","v":"Viande choucrouteViandes soirs"}]
[null,null,null,null,null,null,null,null,null,null,null,null,null,null,null,null,null,null,null,null,null,null,null,null,null,null,null,null,null,null,null,null,null,null,null,null,null,null,null,null,null,null,null,null,null,null,null,null,"VS28","Viande paella","Viandes soirs",{"$f":"TabProduits[[#This Row],[Nom produit]]&TabProduits[[#This Row],[Libellé produit]]","v":"Viande paellaViandes soirs"}]

{"sheet":"BD articles menus","index":2,"n_rows":15,"n_cols":15,"rows_kept":15,"cut":false,"hidden":false,"merged":[]}
[]
["Nom nature création","Code nature création","Nom nature article menu","Code nature article menu","Nom article menu","Code article menu","Nom période article menu","Code période article menu","Nom conditionnement article menu","Code conditionnement article menu","Quantité pour un repas","Quantité pour la journée","Date création article menu","Numéro création article menu","Clé article"]
["Création articles menus","CAM","Dessert midi retraite","DMR","Pomme","DMR01","Lundi à vendredi midis","PAM05","1 sachet de 2 kilogrammes. 1 pomme pour 1 repas",null,null,null,null,"DMR01-01",{"$f":"TabBDArticlesMenus[[#This Row],[Code nature article menu]]&TabBDArticlesMenus[[#This Row],[Nom article menu]]","v":"DMRPomme"}]
["Création articles menus","CAM","Dessert midi retraite","DMR","Pomme","DMR01","Lundi à vendredi midis","PAM05","1 sachet de 2 kilogrammes. 1 pomme pour 1 repas","CAM17","1,00",null,null,"DMR01-02",{"$f":"TabBDArticlesMenus[[#This Row],[Code nature article menu]]&TabBDArticlesMenus[[#This Row],[Nom article menu]]","v":"DMRPomme"}]
["Création articles menus","CAM","Dessert midi retraite","DMR","Pomme","DMR01","Lundi à vendredi midis","PAM05","1 sachet de 2 kilogrammes. 1 pomme pour 1 repas","CAM17","1,00","1,00",null,"DMR01-03",{"$f":"TabBDArticlesMenus[[#This Row],[Code nature article menu]]&TabBDArticlesMenus[[#This Row],[Nom article menu]]","v":"DMRPomme"}]
["Création articles menus","CAM","Dessert midi retraite","DMR","Pomme","DMR01","Lundi à vendredi midis","PAM05","1 sachet de 2 kilogrammes. 1 pomme pour 1 repas","CAM17","1,00","1,00",null,"DMR01-04",{"$f":"TabBDArticlesMenus[[#This Row],[Code nature article menu]]&TabBDArticlesMenus[[#This Row],[Nom article menu]]","v":"DMRPomme"}]
["Création articles menus","CAM","Dessert midi retraite","DMR","Pomme","DMR01","Lundi à vendredi midis","PAM05","1 sachet de 2 kilogrammes. 1 pomme pour 1 repas","CAM17","1,00","1,00","mercredi 26 juillet 2023","DMR01-05",{"$f":"TabBDArticlesMenus[[#This Row],[Code nature article menu]]&TabBDArticlesMenus[[#This Row],[Nom article menu]]","v":"DMRPomme"}]
[null,null,null,null,null,null,null,null,null,null,null,null,null,null,{"$f":"TabBDArticlesMenus[[#This Row],[Code nature article menu]]&TabBDArticlesMenus[[#This Row],[Nom article menu]]","v":""}]
[null,null,null,null,null,null,null,null,null,null,null,null,null,null,{"$f":"TabBDArticlesMenus[[#This Row],[Code nature article menu]]&TabBDArticlesMenus[[#This Row],[Nom article menu]]","v":""}]
[null,null,null,null,null,null,null,null,null,null,null,null,null,null,{"$f":"TabBDArticlesMenus[[#This Row],[Code nature article menu]]&TabBDArticlesMenus[[#This Row],[Nom article menu]]","v":""}]
[null,null,null,null,null,null,null,null,null,null,null,null,null,null,{"$f":"TabBDArticlesMenus[[#This Row],[Code nature article menu]]&TabBDArticlesMenus[[#This Row],[Nom article menu]]","v":""}]
[null,null,null,null,null,null,null,null,null,null,null,null,null,null,{"$f":"TabBDArticlesMenus[[#This Row],[Code nature article menu]]&TabBDArticlesMenus[[#This Row],[Nom article menu]]","v":""}]
[null,null,null,null,null,null,null,null,null,null,null,null,null,null,{"$f":"TabBDArticlesMenus[[#This Row],[Code nature article menu]]&TabBDArticlesMenus[[#This Row],[Nom article menu]]","v":""}]
[null,null,null,null,null,null,null,null,null,null,null,null,null,null,{"$f":"TabBDArticlesMenus[[#This Row],[Code nature article menu]]&TabBDArticlesMenus[[#This Row],[Nom article menu]]","v":""}]
[null,null,null,null,null,null,null,null,null,null,null,null,null,null,{"$f":"TabBDArticlesMenus[[#This Row],[Code nature article menu]]&TabBDArticlesMenus[[#This Row],[Nom article menu]]","v":""}]